Cogmind - Beta 14 @@@ ROGUE MODE // 2025.01.01 @ 23:03:03 Player: x1b Result: Destroyed by S-10 Pest with Light Assault Rifle Performance ------------- Evolutions (1) 500 Regions Visited (2) 400 Robots Destroyed (33) 165 Value Destroyed (679) 679 Prototype IDs (1) 20 Alien Tech Used (0) 0 Bonus (12) 12 TOTAL SCORE: 1776 Bonus ------- High Alert Combat Kills 12 Cogmind --------- Core Integrity 0/400 Matter 300/300 Energy 100/100 System Corruption 8% Temperature Cool (0) Movement Core (50) Location -9/Materials Parts ------- > --- POWER (1) -------- (None) > --- PROPULSION (3) --- (None) > --- UTILITY (3) ------ (None) > --- WEAPON (2) ------- (None) > --- INVENTORY (5) ---- Ion Engine Ion Engine Compact Wheel Sensor Array Sensor Array Peak State ------------ > --- POWER ------------ Light Nuclear Core > --- PROPULSION ------- Light Treads Light Treads > --- UTILITY ---------- Small Storage Unit Medium Matter Pod Visual Processing Unit > --- WEAPON ----------- Light Assault Rifle Shotgun > --- INVENTORY -------- Ion Engine Ion Engine Ion Engine Heavy Ion Engine Compact Wheel Sensor Array Light EM Pulse Cannon [Rating: 13] Favorites ----------- Power Light Nuclear Core Engine Ion Engine Power Core Light Nuclear Core Propulsion Light Treads Treads Light Treads Utility Small Storage Unit Device Sensor Array Storage Small Storage Unit Processor Visual Processing Unit Weapon Light Assault Rifle Energy Gun Medium Laser Energy Cannon Light EM Pulse Cannon Ballistic Gun Light Assault Rifle Launcher Grenade Launcher Build | -11 -10 -9 ------- Run | Yrd Mat Mat Slots Evolved 2 | . . 2 Power . | . . . Propulsion 1 | . . 1 Utility 1 | . . 1 Weapon . | . . . Parts Attached 23 | 6 2 15 Power 4 | 1 1 2 Engine 3 | 1 . 2 Core 1 | . 1 . Reactor . | . . . Propulsion 5 | 2 . 3 Treads 5 | 2 . 3 Leg . | . . . Wheel . | . . . Hover . | . . . Flight . | . . . Utility 4 | 1 1 2 Device 1 | . . 1 Storage 2 | 1 1 . Processor 1 | . . 1 Hackware . | . . . Protection . | . . . Artifact . | . . . Weapon 10 | 2 . 8 Energy Gun 3 | 1 . 2 Energy Cannon 1 | . . 1 Ballistic Gun 5 | 1 . 4 Ballistic Cannon . | . . . Launcher 1 | . . 1 Special Weapon . | . . . Impact Weapon . | . . . Slashing Weapon . | . . . Piercing Weapon . | . . . Special Melee Weapon . | . . . Unidentified Prototypes 1 | . . 1 Parts Lost 14 | . . 14 Power 2 | . . 2 Propulsion 5 | . . 5 Utility 3 | . . 3 Weapon 4 | . . 4 Highest Loss Streak 7 | . . 7 To Critical Strikes . | . . . Average Slot Usage (%) 83 | . 94 79 Engine 4 | . 8 3 Core 6 | . 5 6 Treads 23 | . 28 21 Device 1 | . . 1 Storage 20 | . 22 19 Processor 4 | . . 6 Energy Gun 6 | . 14 3 Ballistic Gun 14 | . 14 15 Peak Build Rating 13 | 6 9 13 Average Rating 9 | 5 7 10 On Entrance 5 | . 6 9 Naked Turns 3 | . . 3 Heaviest Build 20 | 13 15 20 Greatest Support 63 | 40 40 63 Greatest Overweight (x) 3 | . . 3 Average Overweight (x) . | . . . Largest Inventory Capacity 8 | 8 8 8 Average Capacity 7 | 7 8 7 Most Carried 8 | 3 4 8 Average Carried 4 | 1 2 5 Final Capacity 8 | 8 8 5 Final Carried 5 | 2 4 5 Class Distribution -------------------- 100% | Mutant Dominant Class ---------------- Mutant | -10/Materials Mutant | -9/Materials Resources | -11 -10 -9 ----------- Run | Yrd Mat Mat Matter Collected 650 | 233 132 285 Remotely . | . . . Salvage Created 829 | . 162 667 Parts 61 | . 7 54 Haulers Intercepted . | . . . Recyclers Shooed 1 | . 1 . Parts Field Recycled . | . . . Retrieved Matter . | . . . Parts Self-Destructed . | . . . Prevented . | . . . Kills | -11 -10 -9 ------- Run | Yrd Mat Mat Combat Hostiles Destroyed 27 | . 2 25 Guns 16 | . 2 14 Cannons 4 | . . 4 AOE 7 | . . 7 Classes Destroyed 7 | . 3 4 Worker 1 | . . 1 Builder 2 | . . 2 Recycler 2 | . 1 1 Watcher 1 | . 1 . Swarmer 14 | . . 14 Grunt 11 | . 2 9 Sentry 2 | . . 2 Best Kill Streak 14 | . 2 14 Combat Bots Only 11 | . 2 11 Max Kills in Single Turn 4 | . 1 4 Gunslinging 1 | . . 1 Exploded 3 | . . 3 Melee . | . . . Uniques/NPCs Destroyed . | . . . Combat | -11 -10 -9 -------- Run | Yrd Mat Mat Hostile Shots Fired 240 | . 6 234 Missed 70 | . . 70 Damage Taken 2131 | . 88 2043 Core 404 | . . 404 Absorbed by Shields . | . . . Core Remaining (%) 100 | 100 100 . Volleys Fired 80 | . 8 72 Largest 2 | . 2 2 Hottest 105 | . 70 105 Shots Fired 118 | . 16 102 Gun 106 | . 16 90 Cannon 6 | . . 6 Launcher 6 | . . 6 Special . | . . . Kinetic 59 | . 8 51 Thermal 47 | . 8 39 Explosive 6 | . . 6 Electromagnetic 6 | . . 6 Robot Hit Streak 13 | . 6 13 Robot Miss Streak 4 | . 1 4 Penetration Max . | . . . Secondary Targets 1 | . . 1 Max Gunslinging Chain 1 | . . 1 Shots Hit Robots 75 | . 11 64 Core Hits 55 | . 8 47 Critical Kills . | . . . Critical Parts Destroyed . | . . . Critical Strikes 2 | . 1 1 Burn 1 | . 1 . Corrupt 1 | . . 1 Melee Attacks . | . . . Impact . | . . . Slashing . | . . . Piercing . | . . . Sneak Attacks . | . . . Combat Hostiles . | . . . Follow-up Attacks . | . . . Damage Inflicted 1362 | . 118 1244 Guns 769 | . 112 657 Cannons 107 | . . 107 Explosions 471 | . . 471 Melee . | . . . Ramming 15 | . 6 9 Kinetic 337 | . 37 300 Thermal 462 | . 75 387 Explosive 441 | . . 441 Electromagnetic 107 | . . 107 Impact . | . . . Slashing . | . . . Piercing . | . . . Highest Corruption 8 | . . 8 Average Corruption 8 | . . 8 Corruption Purged . | . . . Corruption Blocked . | . . . Effects 10 | . . 10 Message Errors 1 | . . 1 Matter Fused 4 | . . 4 Heat Flow Errors 1 | . . 1 Energy Discharges 1 | . . 1 Data Loss (major) 1 | . . 1 Weapon Failures 2 | . . 2 Overload Shots . | . . . Overflow Damage . | . . . Projectiles . | . . . Explosions . | . . . Melee . | . . . Knockbacks . | . . . Impact . | . . . Kinetic . | . . . Secondary . | . . . Self-Inflicted Damage 45 | . . 45 Shots 2 | . . 2 Rammed 2 | . 1 1 Targets Rammed 4 | . 2 2 Kicked . | . . . Crushed 2 | . 1 1 Highest Temperature 359 | . 141 359 Average Temperature 64 | . 62 64 Received Heat Transfer 417 | . 51 366 Effects 2 | . . 2 Interference 2 | . . 2 Siege Activations . | . . . Robots Corrupted . | . . . Combat Hostiles . | . . . Parts Fried . | . . . Impact Corruptions . | . . . Robots Melted . | . . . Combat Hostiles . | . . . Parts Melted 1 | . . 1 Heat Transferred 1096 | . 296 800 Parts Sabotaged . | . . . Parts Stolen . | . . . Parts Stripped . | . . . Power Chain Reactions 1 | . . 1 Alert | -11 -10 -9 ------- Run | Yrd Mat Mat Peak Influence 444 | . 77 444 Initial 32 | . . 32 Average 101 | . 29 140 Maximum Alert Level 2 | . . 2 Low Security (%) 78 | 100 100 68 Level 1 18 | . . 26 Level 2 3 | . . 5 Level 3 . | . . . Level 4 . | . . . Level 5 . | . . . High Security . | . . . Max Security . | . . . Squads Dispatched 3 | . 1 2 Investigation 1 | . 1 . Extermination . | . . . Reinforcement 2 | . . 2 Assault . | . . . Garrison . | . . . Intercept . | . . . Searches Triggered . | . . . Construction Impeded . | . . . Haulers Reinforced . | . . . Active Scanning Responses . | . . . Cargo Convoy Interrupts . | . . . Stealth | -11 -10 -9 --------- Run | Yrd Mat Mat Distress Signals 1 | . . 1 Communications Jammed . | . . . Distress Signals . | . . . Times Spotted 35 | . 4 31 Peak Tracking Total 7 | . 2 7 Tactical Retreats . | . . . Traps | -11 -10 -9 ------- Run | Yrd Mat Mat Traps Triggered 3 | . 1 2 Indirectly . | . . . Trap Hack Attempts . | . . . Triggered . | . . . Disarmed . | . . . Reprogrammed . | . . . Reused . | . . . Traps Extracted . | . . . Installed . | . . . Triggered . | . . . Machines | -11 -10 -9 ---------- Run | Yrd Mat Mat Machines Disabled 1 | . . 1 Max in Single Turn 1 | . . 1 Machines Repaired . | . . . Machines Dismantled . | . . . Machines Sabotaged . | . . . Overloaded Fab Kills . | . . . Hacking | -11 -10 -9 --------- Run | Yrd Mat Mat Machines Accessed 2 | . . 2 Terminals 2 | . . 2 Fabricators . | . . . Repair Stations . | . . . Recycling Units . | . . . Scanalyzers . | . . . Garrison Access . | . . . Total Hacks 5 | . . 5 Successful 2 | . . 2 Failed 3 | . . 3 Catastrophic . | . . . Database Lockouts . | . . . Manual . | . . . Terminals 5 | . . 5 Fabricators . | . . . Repair Stations . | . . . Recycling Units . | . . . Scanalyzers . | . . . Garrison Access . | . . . Terminal Hacks 2 | . . 2 Dispatch Records 1 | . . 1 Reinforcement Status 1 | . . 1 Fabricator Hacks . | . . . Repair Station Hacks . | . . . Recycling Unit Hacks . | . . . Scanalyzer . | . . . Garrison Access Hacks . | . . . Unauthorized Hacks . | . . . Terminals . | . . . Fabricators . | . . . Repair Stations . | . . . Recycling Units . | . . . Scanalyzers . | . . . Garrison Access . | . . . Data Cores Recovered . | . . . Used . | . . . Hacking Detections 1 | . . 1 Full Trace Events . | . . . Feedback Events . | . . . Feedback Blocked . | . . . Robot Schematics Acquired . | . . . Robots Built . | . . . Authchips . | . . . Time . | . . . Total Robot Build Rating . | . . . Part Schematics Acquired . | . . . Parts Built . | . . . Authchips . | . . . Time . | . . . Total Part Build Rating . | . . . Parts Repaired . | . . . Time . | . . . Parts Recycled . | . . . Recycled Matter . | . . . Retrieved Matter . | . . . Retrieved Components . | . . . Parts Scanalyzed . | . . . Part Schematics Acquired . | . . . Parts Damaged . | . . . Bothacking | -11 -10 -9 ------------ Run | Yrd Mat Mat Used RIF Installer . | . . . Robots Hacked . | . . . Non-combat . | . . . Combat . | . . . Robot Hacks Applied . | . . . Relay Couplers Released . | . . . Fabnet Peak Effective % . | . . . Robots Rewired . | . . . Allies Hacked . | . . . Hacks Repelled . | . . . Allies | -11 -10 -9 -------- Run | Yrd Mat Mat Total Allies . | . . . Largest Group . | . . . Highest-Rated Group . | . . . Highest-Rated Ally . | . . . Total Orders . | . . . Ally Attacks . | . . . Total Damage . | . . . Kills . | . . . Allies Corrupted . | . . . Allies Melted . | . . . Intel | -11 -10 -9 ------- Run | Yrd Mat Mat Robot Analysis Total . | . . . Derelict Logs Recovered . | . . . Drone Launches . | . . . Drone Recoveries . | . . . Exploration | -11 -10 -9 ------------- Run | Yrd Mat Mat Turns Passed 1500 | 154 332 1014 Spaces Moved 690 | 91 189 410 Core 6 | 3 . 3 Treads 684 | 88 189 407 Legs . | . . . Wheels . | . . . Hover . | . . . Flight . | . . . Fastest Speed 50 | 50 160 160 Average Speed 159 | 156 160 160 Slowest Speed 200 | 160 160 200 Overloaded Moves . | . . . Propulsion Burnouts . | . . . Robots Hopped . | . . . Cave-ins Triggered 1 | . . 1 Exploration Rate (%) 26 | 8 37 34 Regions Visited 2 Branch Regions . Pre-discovered Areas . | . . . Known Exits Taken . | . . . Unknown Exits Taken 2 | 1 1 . Scrap Searched . | . . . Spaces Dug . | . . . Terrain Destroyed 30 | . . 30 Melee . | . . . Projectile . | . . . AOE 30 | . . 30 Terrain Rammed . | . . . Walls Destroyed . | . . . Machines Disabled . | . . . Actions | -11 -10 -9 --------- Run | Yrd Mat Mat Total 966 | 100 202 664 Wait 154 | . . 154 Move 688 | 90 188 410 Hop . | . . . Pick Up 13 | 3 2 8 Fast Attach 10 | 6 1 3 Attach 4 | . . 4 Detach . | . . . Swap 9 | . 1 8 Drop 4 | 1 . 3 Fire 80 | . 8 72 Melee . | . . . Ram . | . . . Kick . | . . . Crush 4 | . 2 2 Escape Stasis . | . . . Rewire . | . . . Trap . | . . . Miscellaneous . | . . . Route ------- -11/Scrapyard -10/Materials -9/Materials History --------- Turn | Location | Event 12 | -11/Scrapyard | Discovered new exit (range 15) 155 | -11/Scrapyard | Entered Materials 313 | -10/Materials | Build established: Mutant 461 | -10/Materials | Discovered new exit (range 10) 487 | -10/Materials | Entered another Materials area 487 | -9/Materials | Evolved 2 slots: Propulsion x1, Utility x1 1243 | -9/Materials | Crushed by falling debris 1261 | -9/Materials | Destroyed 11 combat bots 1274 | -9/Materials | Lost 5 parts (1n2u2w) 1432 | -9/Materials | Core integrity fell below 50% 1490 | -9/Materials | Core integrity fell below 20% 1501 | -9/Materials | Destroyed by S-10 Pest with Light Assault Rifle Last Messages --------------- Y-45 Defender destroyed. K-01 Serf collects debris. Spread Laser destroyed. Imp. Treads destroyed. Lgt. Treads destroyed. K-01 Serf collects debris. Acquired Lgt. Treads. S-10 Pest destroyed. Acquired 10 matter. System corrupted: Substantial component data lost. S-10 Pest destroyed. Critical hit (Burn: +37). Ion Engine destroyed. System corrupted: Sml. Laser failed to cycle. Lgt. Treads destroyed. Critical hit (Burn: +37). Sml. Laser destroyed. Y-45 Defender heat short circuits Beam Rifle. Sml. Storage Unit destroyed. Map ----- +----------------------------------------------------+ | ???????????????????????????????????????????+ ??? | | ???????????????????????????????????????????# ??? | | ???????????????????????????????????????????# ??? | | ???????????????????????????????????????????# ##+ | | ???????????????????????????????????????????# | | ?????????????????????????????????????####### | | ???????????????????????????????????? | | ???????????????????????????????????? | | ???????????????????????????????????? | | ??????????????????????????????????? !! | | ????????????????????? ??????????? !! | | ????????????????????# ??????????? !! | | ???????????????????## ##??????????????# | | ???????????????????# #??????????????# | | ???????????????????# #??????????????# | | ???????????????????? "% ???????????????# | | ???????????????????? " ???????????????# | | ???????????????????? ???????????????# ### | | ????????????????##### #????############ ##?* | | ????????????????#== ##### # ] # ## #+ | | ????????????????#== # # """ # # % | | ????????????????#!! # # """ [+% T # | | ????????????????#!! # "" # """ # # | | ????????????????#!! # T" # # # | | ????????????????#!! *#! "" # """ "" ## [# | | ????????????????????# %Y@== # """ Y" ## %# | | ????????????????????# [##s#### """ " # =# | | ????????????????????# # %[ # = " ##* | | ????????????????????# # """ #######""=#%[!%%=[ | | ????????????????????# # """ #######"! =##= | | ????????????????????# " """ + %!## | | ????????????????????+ # ## #########+####### | | ????????????????????# # "T" ## #???# ! #?? | | ????????????????????### # """ ## #???#% #?? | | ??????????????????????# #####+## #??# #?? | | ??????????????????????# =!%[!% #??## *!! #?? | | ??????????????????????############???#"" *!! #?? | | ?????????????????????????????????????#"T *!* #?? | | ?????????????????????????????????????#"" !#?? | | ?????????????????????????????????????# #?? | | ??????????????????????????????????????##########?? | | ?????????????????????????????????????????????????? | | | | | | | | | | | | | | | | | +----------------------------------------------------+ Best States ------------- Heat Dissipation 28 Energy Generation 14 Energy Capacity 280 Matter Stores 400 Matter Capacity 400 Sight Range 18 Robot Scan Range 14 Terrain Scan Density 10 Evasion (%) 40 Recoil Reduction 3 Item Schematics ----------------- None Robot Schematics ------------------ None Fabricated ------------ Nothing Alien Tech Used ----------------- None Achievements -------------- None Challenges ------------ None Game ------ Seed MappingModifiedBallwheel Manual? 0 Play Time 00:12:00 Cumulative 4.6 hours Start 2025.01.01 @ 22:48:13 End 2025.01.01 @ 23:03:03 Sessions 1 Manual Loads 0 Difficulty Rogue Special Mode None Game No. 18 Rogue 12 Adventurer 6 Explorer 0 Win Type - Total 0 Types 0/0/0/0/0/0/0/0/0 Lore% 2 Gallery% 9 Achievement% 10 Wizard Run 0 Options --------- Layout 1 ASCII 0 Keyboard 0 Movement Arrows Keybinds 0 Fullscreen 1 Font 24/Smallcaps Map View 50x35 Zoom Use 0% Tactical HUD 0 Map Filters NONE Filters NONE Steam 1 RUN: 926e1a9b-51f7-4f61-8103-ae44d75b6330